[Event "Titled Tuesday Blitz October 31 Late 2023"]
[White "Al-Tarboush, Ward"]
[Black "Reprintsev, Alexander"]
[WhiteFideId "7601450"]
[BlackFideId "14100541"]
[WhiteElo "2652"]
[BlackElo "2514"]
[Result "1-0"]
[Round "5"]
[TimeControl "180+1"]
[Date "2023.10.31"]
[WhiteClock "0:00:05"]
[BlackClock "0:00:00"]
[Board "49"]

1. e4 {[%clk 0:03:00]}  d5 {[%clk 0:02:55]} 2. exd5 {[%clk 0:03:00]}  Qxd5 {[%clk 0:02:55]} 3. Nc3 {[%clk 0:03:00]}  Qa5 {[%clk 0:02:55]} 4. d4 {[%clk 0:02:59]}  Nf6 {[%clk 0:02:56]} 5. Nf3 {[%clk 0:02:59]}  Nc6 {[%clk 0:02:56]} 6. Bb5 {[%clk 0:02:59]}  Ne4 {[%clk 0:02:56]} 7. Rb1 {[%clk 0:02:54]}  Nxc3 {[%clk 0:02:45]} 8. bxc3 {[%clk 0:02:55]}  a6 {[%clk 0:02:45]} 9. Bxc6+ {[%clk 0:02:49]}  bxc6 {[%clk 0:02:46]} 10. O-O {[%clk 0:02:46]}  Bg4 {[%clk 0:02:46]} 11. h3 {[%clk 0:02:44]}  Bxf3 {[%clk 0:02:45]} 12. Qxf3 {[%clk 0:02:44]}  Qd5 {[%clk 0:02:46]} 13. Qe2 {[%clk 0:02:38]}  e6 {[%clk 0:02:45]} 14. c4 {[%clk 0:02:37]}  Qf5 {[%clk 0:02:45]} 15. d5 {[%clk 0:02:34]}  cxd5 {[%clk 0:02:41]} 16. cxd5 {[%clk 0:02:35]}  Qxd5 {[%clk 0:02:41]} 17. Rd1 {[%clk 0:02:33]}  Qc6 {[%clk 0:02:40]} 18. Bb2 {[%clk 0:02:28]}  Bd6 {[%clk 0:02:38]} 19. Qg4 {[%clk 0:02:17]}  O-O-O {[%clk 0:02:30]} 20. Bd4 {[%clk 0:02:04]}  h5 {[%clk 0:02:24]} 21. Qe2 {[%clk 0:02:01]}  Rh6 {[%clk 0:02:08]} 22. Ba7 {[%clk 0:01:50]}  Rg6 {[%clk 0:02:07]} 23. g3 {[%clk 0:01:17]}  h4 {[%clk 0:02:07]} 24. g4 {[%clk 0:01:13]}  f5 {[%clk 0:02:07]} 25. c4 {[%clk 0:00:54]}  fxg4 {[%clk 0:02:02]} 26. hxg4 {[%clk 0:00:39]}  h3 {[%clk 0:02:00]} 27. Rb8+ {[%clk 0:00:32]}  Kd7 {[%clk 0:02:00]} 28. Rxd8+ {[%clk 0:00:33]}  Kxd8 {[%clk 0:02:00]} 29. f3 {[%clk 0:00:34]}  Ke7 {[%clk 0:01:50]} 30. Bf2 {[%clk 0:00:22]}  h2+ {[%clk 0:01:48]} 31. Kh1 {[%clk 0:00:22]}  Rxg4 {[%clk 0:01:45]} 32. c5 {[%clk 0:00:22]}  Bg3 {[%clk 0:01:29]} 33. Be3 {[%clk 0:00:17]}  Bf4 {[%clk 0:01:14]} 34. Rd4 {[%clk 0:00:10]}  Rg1+ {[%clk 0:01:07]} 35. Bxg1 {[%clk 0:00:10]}  hxg1=Q+ {[%clk 0:01:08]} 36. Kxg1 {[%clk 0:00:10]}  Qxc5 {[%clk 0:01:08]} 37. Qf2 {[%clk 0:00:07]}  Qg5+ {[%clk 0:01:08]} 38. Kf1 {[%clk 0:00:04]}  Be3 {[%clk 0:01:08]} 39. Rg4 {[%clk 0:00:05]}  Qh6 {[%clk 0:00:52]} 40. Qg2 {[%clk 0:00:04]}  Bd4 {[%clk 0:00:50]} 41. Rxd4 {[%clk 0:00:04]}  Qc1+ {[%clk 0:00:49]} 42. Ke2 {[%clk 0:00:04]}  Qc2+ {[%clk 0:00:41]} 43. Rd2 {[%clk 0:00:04]}  Qc4+ {[%clk 0:00:40]} 44. Ke3 {[%clk 0:00:04]}  Qc5+ {[%clk 0:00:38]} 45. Kd3 {[%clk 0:00:04]}  Qd5+ {[%clk 0:00:36]} 46. Kc3 {[%clk 0:00:04]}  Qa5+ {[%clk 0:00:35]} 47. Kb3 {[%clk 0:00:03]}  Qb5+ {[%clk 0:00:32]} 48. Kc2 {[%clk 0:00:04]}  Qc4+ {[%clk 0:00:31]} 49. Kd1 {[%clk 0:00:04]}  Qa4+ {[%clk 0:00:31]} 50. Rc2 {[%clk 0:00:03]}  Qd4+ {[%clk 0:00:30]} 51. Qd2 {[%clk 0:00:04]}  Qg1+ {[%clk 0:00:29]} 52. Qe1 {[%clk 0:00:04]}  Qd4+ {[%clk 0:00:29]} 53. Ke2 {[%clk 0:00:04]}  c5 {[%clk 0:00:26]} 54. Qc3 {[%clk 0:00:04]}  Qh4 {[%clk 0:00:13]} 55. Qxc5+ {[%clk 0:00:03]}  Kf7 {[%clk 0:00:13]} 56. Qc7+ {[%clk 0:00:04]}  Kg6 {[%clk 0:00:12]} 57. Ke3 {[%clk 0:00:04]}  Qg5+ {[%clk 0:00:08]} 58. Qf4 {[%clk 0:00:05]}  Qg1+ {[%clk 0:00:08]} 59. Kd3 {[%clk 0:00:03]}  Qf1+ {[%clk 0:00:08]} 60. Kc3 {[%clk 0:00:03]}  Qe1+ {[%clk 0:00:08]} 61. Qd2 {[%clk 0:00:04]}  Qe5+ {[%clk 0:00:07]} 62. Qd4 {[%clk 0:00:05]}  Qa5+ {[%clk 0:00:08]} 63. Kb3 {[%clk 0:00:05]}  Qb5+ {[%clk 0:00:07]} 64. Qb4 {[%clk 0:00:05]}  Qd5+ {[%clk 0:00:07]} 65. Qc4 {[%clk 0:00:05]}  Qxf3+ {[%clk 0:00:07]} 66. Kb2 {[%clk 0:00:05]}  Qb7+ {[%clk 0:00:07]} 67. Ka1 {[%clk 0:00:05]}  Qh1+ {[%clk 0:00:06]} 68. Rc1 {[%clk 0:00:06]}  Qg2 {[%clk 0:00:06]} 69. Qd3+ {[%clk 0:00:05]}  Kg5 {[%clk 0:00:04]} 70. Qe3+ {[%clk 0:00:05]}  Kf6 {[%clk 0:00:00]} 71. Rg1 {[%clk 0:00:05]} 1-0


[Site "https://www.chess.com"]

[Event "Titled Tuesday Blitz October 31 Late 2023"]
[White "Zeynalli, Rashad"]
[Black "Kubicka, Anna"]
[WhiteFideId "13403320"]
[BlackFideId "1152254"]
[WhiteElo "2633"]
[BlackElo "2473"]
[Result "1-0"]
[Round "5"]
[TimeControl "180+1"]
[Date "2023.10.31"]
[WhiteClock "0:00:17"]
[BlackClock "0:00:07"]
[Board "52"]

1. e4 {[%clk 0:03:00]}  c5 {[%clk 0:02:59]} 2. Nf3 {[%clk 0:03:00]}  d6 {[%clk 0:03:00]} 3. d4 {[%clk 0:02:58]}  cxd4 {[%clk 0:03:00]} 4. Nxd4 {[%clk 0:02:59]}  Nf6 {[%clk 0:03:01]} 5. Nc3 {[%clk 0:02:58]}  a6 {[%clk 0:03:02]} 6. Be3 {[%clk 0:02:56]}  e5 {[%clk 0:03:02]} 7. Nb3 {[%clk 0:02:56]}  Be7 {[%clk 0:03:02]} 8. h3 {[%clk 0:02:55]}  Be6 {[%clk 0:03:02]} 9. Qf3 {[%clk 0:02:56]}  b5 {[%clk 0:02:58]} 10. O-O-O {[%clk 0:02:54]}  Nbd7 {[%clk 0:02:57]} 11. g4 {[%clk 0:02:52]}  Nb6 {[%clk 0:02:50]} 12. Na5 {[%clk 0:02:41]}  Qc7 {[%clk 0:02:42]} 13. g5 {[%clk 0:01:59]}  Nfd7 {[%clk 0:02:41]} 14. Nd5 {[%clk 0:01:57]}  Bxd5 {[%clk 0:02:17]} 15. exd5 {[%clk 0:01:58]}  Rc8 {[%clk 0:02:11]} 16. Bd3 {[%clk 0:01:34]}  Nc4 {[%clk 0:02:11]} 17. Nc6 {[%clk 0:01:25]}  Nxe3 {[%clk 0:02:04]} 18. Qxe3 {[%clk 0:01:23]}  g6 {[%clk 0:01:55]} 19. h4 {[%clk 0:01:16]}  Nb8 {[%clk 0:01:51]} 20. Be4 {[%clk 0:01:13]}  Nxc6 {[%clk 0:01:36]} 21. dxc6 {[%clk 0:01:13]}  f5 {[%clk 0:01:29]} 22. gxf6 {[%clk 0:01:11]}  Bxf6 {[%clk 0:01:29]} 23. Kb1 {[%clk 0:01:10]}  O-O {[%clk 0:01:16]} 24. Qd3 {[%clk 0:00:53]}  Qe7 {[%clk 0:01:04]} 25. Qxd6 {[%clk 0:00:42]}  Rfd8 {[%clk 0:00:41]} 26. Qxe7 {[%clk 0:00:31]}  Bxe7 {[%clk 0:00:42]} 27. Rd7 {[%clk 0:00:30]}  Rxd7 {[%clk 0:00:20]} 28. cxd7 {[%clk 0:00:30]}  Rd8 {[%clk 0:00:20]} 29. Bd5+ {[%clk 0:00:30]}  Kg7 {[%clk 0:00:19]} 30. Be6 {[%clk 0:00:31]}  Kf6 {[%clk 0:00:18]} 31. Bg4 {[%clk 0:00:30]}  Bc5 {[%clk 0:00:18]} 32. f3 {[%clk 0:00:28]}  Ke7 {[%clk 0:00:19]} 33. h5 {[%clk 0:00:24]}  g5 {[%clk 0:00:17]} 34. h6 {[%clk 0:00:25]}  Rf8 {[%clk 0:00:14]} 35. Rd1 {[%clk 0:00:22]}  Bb6 {[%clk 0:00:14]} 36. Rd5 {[%clk 0:00:19]}  Bc7 {[%clk 0:00:15]} 37. Rc5 {[%clk 0:00:19]}  Bd6 {[%clk 0:00:14]} 38. Rc6 {[%clk 0:00:19]}  Rd8 {[%clk 0:00:13]} 39. Rxa6 {[%clk 0:00:18]}  Rb8 {[%clk 0:00:12]} 40. a3 {[%clk 0:00:15]}  b4 {[%clk 0:00:12]} 41. a4 {[%clk 0:00:15]}  Rf8 {[%clk 0:00:10]} 42. Ka2 {[%clk 0:00:15]}  Rf6 {[%clk 0:00:10]} 43. Ra8 {[%clk 0:00:14]}  Bc7 {[%clk 0:00:10]} 44. Re8+ {[%clk 0:00:14]}  Kd6 {[%clk 0:00:10]} 45. d8=Q+ {[%clk 0:00:14]}  Bxd8 {[%clk 0:00:10]} 46. Rxd8+ {[%clk 0:00:15]}  Kc5 {[%clk 0:00:11]} 47. Rd7 {[%clk 0:00:15]}  Rxh6 {[%clk 0:00:11]} 48. Rc7+ {[%clk 0:00:13]}  Kd4 {[%clk 0:00:11]} 49. Kb3 {[%clk 0:00:13]}  Rh2 {[%clk 0:00:11]} 50. Rc4+ {[%clk 0:00:13]}  Ke3 {[%clk 0:00:11]} 51. Re4+ {[%clk 0:00:13]}  Kf2 {[%clk 0:00:11]} 52. Rxe5 {[%clk 0:00:14]}  h5 {[%clk 0:00:12]} 53. Rxg5 {[%clk 0:00:14]}  hxg4 {[%clk 0:00:12]} 54. Rxg4 {[%clk 0:00:15]}  Kxf3 {[%clk 0:00:13]} 55. Rxb4 {[%clk 0:00:16]}  Rh5 {[%clk 0:00:13]} 56. c3 {[%clk 0:00:16]}  Ke3 {[%clk 0:00:14]} 57. Rb5 {[%clk 0:00:17]}  Rh2 {[%clk 0:00:14]} 58. a5 {[%clk 0:00:17]}  Rh1 {[%clk 0:00:14]} 59. a6 {[%clk 0:00:17]}  Ra1 {[%clk 0:00:15]} 60. Rb6 {[%clk 0:00:16]}  Kd3 {[%clk 0:00:15]} 61. Rd6+ {[%clk 0:00:16]}  Ke4 {[%clk 0:00:15]} 62. Kc4 {[%clk 0:00:16]}  Ke5 {[%clk 0:00:15]} 63. Rb6 {[%clk 0:00:16]}  Ra4+ {[%clk 0:00:15]} 64. b4 {[%clk 0:00:16]}  Ra2 {[%clk 0:00:15]} 65. b5 {[%clk 0:00:17]}  Ra1 {[%clk 0:00:15]} 66. Rb7 {[%clk 0:00:16]}  Kd6 {[%clk 0:00:15]} 67. a7 {[%clk 0:00:17]}  Ra4+ {[%clk 0:00:13]} 68. Kb3 {[%clk 0:00:16]}  Ra1 {[%clk 0:00:13]} 69. b6 {[%clk 0:00:17]}  Kc6 {[%clk 0:00:07]} 70. Rb8 {[%clk 0:00:17]} 1-0


[Site "https://www.chess.com"]

[Event "Titled Tuesday Blitz October 31 Late 2023"]
[White "Ankerst, Mihael"]
[Black "Fiorito, Francisco"]
[WhiteFideId "14602369"]
[BlackFideId "180165"]
[WhiteElo "2436"]
[BlackElo "2612"]
[Result "0-1"]
[Round "5"]
[TimeControl "180+1"]
[Date "2023.10.31"]
[WhiteClock "0:00:00"]
[BlackClock "0:00:52"]
[Board "54"]

1. h4 {[%clk 0:02:58]}  d5 {[%clk 0:02:58]} 2. h5 {[%clk 0:02:58]}  h6 {[%clk 0:02:57]} 3. d3 {[%clk 0:02:58]}  Bf5 {[%clk 0:02:56]} 4. f3 {[%clk 0:02:58]}  e5 {[%clk 0:02:55]} 5. e4 {[%clk 0:02:58]}  Be6 {[%clk 0:02:53]} 6. c3 {[%clk 0:02:58]}  c5 {[%clk 0:02:49]} 7. Be3 {[%clk 0:02:51]}  Nc6 {[%clk 0:02:49]} 8. Nd2 {[%clk 0:02:50]}  Be7 {[%clk 0:02:48]} 9. Nh3 {[%clk 0:02:46]}  Bh4+ {[%clk 0:02:43]} 10. Ke2 {[%clk 0:02:45]}  d4 {[%clk 0:02:35]} 11. Bg1 {[%clk 0:02:42]}  Be7 {[%clk 0:02:17]} 12. Nf2 {[%clk 0:02:30]}  Nf6 {[%clk 0:02:15]} 13. g3 {[%clk 0:02:30]}  Qd7 {[%clk 0:02:03]} 14. a3 {[%clk 0:02:31]}  b5 {[%clk 0:01:58]} 15. c4 {[%clk 0:02:29]}  a6 {[%clk 0:01:42]} 16. Bh3 {[%clk 0:02:11]}  Nxh5 {[%clk 0:01:19]} 17. Bxe6 {[%clk 0:02:04]}  Nxg3+ {[%clk 0:01:18]} 18. Ke1 {[%clk 0:02:04]}  Qxe6 {[%clk 0:01:18]} 19. Rh3 {[%clk 0:02:05]}  Qg6 {[%clk 0:01:18]} 20. Bh2 {[%clk 0:02:01]}  Nh5 {[%clk 0:01:18]} 21. Ng4 {[%clk 0:01:43]}  Nf4 {[%clk 0:01:13]} 22. Bxf4 {[%clk 0:01:38]}  exf4 {[%clk 0:01:14]} 23. cxb5 {[%clk 0:01:38]}  axb5 {[%clk 0:01:14]} 24. a4 {[%clk 0:01:38]}  bxa4 {[%clk 0:01:08]} 25. Rxa4 {[%clk 0:01:36]}  O-O {[%clk 0:01:09]} 26. Nc4 {[%clk 0:01:32]}  h5 {[%clk 0:01:07]} 27. Nf2 {[%clk 0:01:28]}  Qg1+ {[%clk 0:01:05]} 28. Ke2 {[%clk 0:01:22]}  Qxd1+ {[%clk 0:01:04]} 29. Nxd1 {[%clk 0:01:12]}  Rxa4 {[%clk 0:01:05]} 30. Rxh5 {[%clk 0:01:07]}  Rb8 {[%clk 0:01:05]} 31. Kd2 {[%clk 0:01:05]}  g5 {[%clk 0:01:01]} 32. Rh6 {[%clk 0:01:04]}  Rxc4 {[%clk 0:01:00]} 33. dxc4 {[%clk 0:01:04]}  Ne5 {[%clk 0:01:00]} 34. Kc2 {[%clk 0:00:41]}  Nxc4 {[%clk 0:00:58]} 35. b3 {[%clk 0:00:31]}  Ne3+ {[%clk 0:00:58]} 36. Nxe3 {[%clk 0:00:30]}  fxe3 {[%clk 0:00:59]} 37. Rc6 {[%clk 0:00:26]}  g4 {[%clk 0:00:51]} 38. fxg4 {[%clk 0:00:00]}  Bh4 {[%clk 0:00:52]} 0-1


[Site "https://www.chess.com"]

[Event "Titled Tuesday Blitz October 31 Late 2023"]
[White "Lalanne, Pablo"]
[Black "Sivakumar, Shaaketh"]
[WhiteFideId "112151"]
[BlackFideId "30940176"]
[WhiteElo "2342"]
[BlackElo "2599"]
[Result "0-1"]
[Round "5"]
[TimeControl "180+1"]
[Date "2023.10.31"]
[WhiteClock "0:00:04"]
[BlackClock "0:00:38"]
[Board "55"]

1. e4 {[%clk 0:03:00]}  e6 {[%clk 0:02:51]} 2. d4 {[%clk 0:03:00]}  d5 {[%clk 0:02:50]} 3. Nc3 {[%clk 0:03:01]}  Bb4 {[%clk 0:02:49]} 4. e5 {[%clk 0:03:01]}  Ne7 {[%clk 0:02:41]} 5. a3 {[%clk 0:03:00]}  Bxc3+ {[%clk 0:02:38]} 6. bxc3 {[%clk 0:03:01]}  c5 {[%clk 0:02:38]} 7. Qg4 {[%clk 0:03:00]}  Kf8 {[%clk 0:02:37]} 8. h4 {[%clk 0:02:46]}  Qa5 {[%clk 0:02:34]} 9. Bd2 {[%clk 0:02:22]}  Qa4 {[%clk 0:02:32]} 10. Qd1 {[%clk 0:02:12]}  Nbc6 {[%clk 0:02:30]} 11. Nf3 {[%clk 0:02:11]}  cxd4 {[%clk 0:02:26]} 12. h5 {[%clk 0:02:10]}  h6 {[%clk 0:02:19]} 13. Rh4 {[%clk 0:02:04]}  Nf5 {[%clk 0:02:16]} 14. Rf4 {[%clk 0:02:03]}  b6 {[%clk 0:02:03]} 15. g4 {[%clk 0:02:02]}  Nfe7 {[%clk 0:02:02]} 16. cxd4 {[%clk 0:01:58]}  Ba6 {[%clk 0:02:00]} 17. g5 {[%clk 0:01:41]}  Bxf1 {[%clk 0:01:59]} 18. Kxf1 {[%clk 0:01:40]}  Nf5 {[%clk 0:01:58]} 19. Kg2 {[%clk 0:01:23]}  hxg5 {[%clk 0:01:50]} 20. Nxg5 {[%clk 0:01:20]}  Ncxd4 {[%clk 0:01:50]} 21. Bb4+ {[%clk 0:01:17]}  Kg8 {[%clk 0:01:50]} 22. Rxd4 {[%clk 0:01:16]}  Nxd4 {[%clk 0:01:50]} 23. Qxd4 {[%clk 0:01:14]}  Rxh5 {[%clk 0:01:47]} 24. Qf4 {[%clk 0:01:05]}  Rf8 {[%clk 0:01:35]} 25. Rh1 {[%clk 0:00:41]}  Rxh1 {[%clk 0:01:27]} 26. Kxh1 {[%clk 0:00:41]}  f6 {[%clk 0:01:04]} 27. Nxe6 {[%clk 0:00:33]}  Rf7 {[%clk 0:01:00]} 28. exf6 {[%clk 0:00:26]}  Rxf6 {[%clk 0:00:58]} 29. Qb8+ {[%clk 0:00:25]}  Kf7 {[%clk 0:00:55]} 30. Nd8+ {[%clk 0:00:17]}  Kg6 {[%clk 0:00:53]} 31. Qg3+ {[%clk 0:00:16]}  Kh7 {[%clk 0:00:53]} 32. Qd3+ {[%clk 0:00:12]}  Kh8 {[%clk 0:00:50]} 33. Qxd5 {[%clk 0:00:09]}  Qe8 {[%clk 0:00:50]} 34. Nb7 {[%clk 0:00:07]}  Rh6+ {[%clk 0:00:44]} 35. Kg1 {[%clk 0:00:08]}  Qg6+ {[%clk 0:00:44]} 36. Kf1 {[%clk 0:00:07]}  Rh1+ {[%clk 0:00:44]} 37. Ke2 {[%clk 0:00:08]}  Qxc2+ {[%clk 0:00:44]} 38. Qd2 {[%clk 0:00:07]}  Qc4+ {[%clk 0:00:41]} 39. Qd3 {[%clk 0:00:07]}  Qa2+ {[%clk 0:00:40]} 40. Kf3 {[%clk 0:00:04]}  Rh3+ {[%clk 0:00:38]} 0-1


[Site "https://www.chess.com"]

[Event "Titled Tuesday Blitz October 31 Late 2023"]
[White "Santos Flores, Alberto"]
[Black "Tokhirjonova, Gulrukhbegim"]
[WhiteFideId "3601234"]
[BlackFideId "14203626"]
[WhiteElo "2503"]
[BlackElo "2686"]
[Result "0-1"]
[Round "5"]
[TimeControl "180+1"]
[Date "2023.10.31"]
[WhiteClock "0:00:36"]
[BlackClock "0:00:11"]
[Board "60"]

1. e4 {[%clk 0:03:00]}  e5 {[%clk 0:02:56]} 2. Nf3 {[%clk 0:03:01]}  Nc6 {[%clk 0:02:56]} 3. Bc4 {[%clk 0:03:01]}  Bc5 {[%clk 0:02:56]} 4. O-O {[%clk 0:03:01]}  Nf6 {[%clk 0:02:56]} 5. d4 {[%clk 0:03:01]}  Bxd4 {[%clk 0:02:53]} 6. Nxd4 {[%clk 0:03:00]}  Nxd4 {[%clk 0:02:53]} 7. Bg5 {[%clk 0:03:00]}  d6 {[%clk 0:02:52]} 8. f4 {[%clk 0:02:58]}  Qe7 {[%clk 0:02:52]} 9. Nc3 {[%clk 0:02:55]}  c6 {[%clk 0:02:45]} 10. fxe5 {[%clk 0:02:45]}  dxe5 {[%clk 0:02:45]} 11. Qe1 {[%clk 0:02:42]}  Qc5 {[%clk 0:02:38]} 12. Bxf7+ {[%clk 0:02:05]}  Kxf7 {[%clk 0:02:36]} 13. Qf2 {[%clk 0:02:05]}  Rf8 {[%clk 0:02:22]} 14. Kh1 {[%clk 0:01:57]}  Kg8 {[%clk 0:02:20]} 15. Qg3 {[%clk 0:01:43]}  Qe7 {[%clk 0:01:53]} 16. Rf2 {[%clk 0:01:36]}  Bd7 {[%clk 0:01:17]} 17. Raf1 {[%clk 0:01:35]}  Kh8 {[%clk 0:01:17]} 18. Qh4 {[%clk 0:01:32]}  Ne6 {[%clk 0:00:41]} 19. Be3 {[%clk 0:00:57]}  Ng8 {[%clk 0:00:29]} 20. Qg3 {[%clk 0:00:55]}  Rxf2 {[%clk 0:00:28]} 21. Rxf2 {[%clk 0:00:55]}  Nd4 {[%clk 0:00:19]} 22. Bg5 {[%clk 0:00:51]}  Qd6 {[%clk 0:00:15]} 23. Rf7 {[%clk 0:00:48]}  Rf8 {[%clk 0:00:11]} 24. Be7 {[%clk 0:00:38]}  Rxf7 {[%clk 0:00:11]} 25. Bxd6 {[%clk 0:00:36]}  Rf1# {[%clk 0:00:11]} 0-1


[Site "https://www.chess.com"]

[Event "Titled Tuesday Blitz October 31 Late 2023"]
[White "Rosen, Eric"]
[Black "Buchenau, Frank"]
[WhiteFideId "2032562"]
[BlackFideId "4604350"]
[WhiteElo "2661"]
[BlackElo "2487"]
[Result "1-0"]
[Round "5"]
[TimeControl "180+1"]
[Date "2023.10.31"]
[WhiteClock "0:00:26"]
[BlackClock "0:00:00"]
[Board "62"]

1. e4 {[%clk 0:03:00]}  e6 {[%clk 0:03:00]} 2. f4 {[%clk 0:02:59]}  d5 {[%clk 0:03:00]} 3. e5 {[%clk 0:02:58]}  c5 {[%clk 0:03:00]} 4. Nf3 {[%clk 0:02:58]}  Nc6 {[%clk 0:03:00]} 5. c3 {[%clk 0:02:55]}  Nh6 {[%clk 0:02:59]} 6. Na3 {[%clk 0:02:55]}  Be7 {[%clk 0:02:58]} 7. Nc2 {[%clk 0:02:51]}  O-O {[%clk 0:02:57]} 8. d4 {[%clk 0:02:49]}  cxd4 {[%clk 0:02:55]} 9. cxd4 {[%clk 0:02:49]}  Bd7 {[%clk 0:02:54]} 10. Bd3 {[%clk 0:02:47]}  Rc8 {[%clk 0:02:51]} 11. O-O {[%clk 0:02:45]}  b5 {[%clk 0:02:44]} 12. Kh1 {[%clk 0:02:44]}  Qb6 {[%clk 0:02:29]} 13. Be3 {[%clk 0:02:44]}  Nb4 {[%clk 0:02:20]} 14. Nxb4 {[%clk 0:02:43]}  Bxb4 {[%clk 0:02:20]} 15. Ng5 {[%clk 0:02:33]}  Nf5 {[%clk 0:01:44]} 16. Bf2 {[%clk 0:02:33]}  f6 {[%clk 0:01:28]} 17. exf6 {[%clk 0:02:19]}  gxf6 {[%clk 0:01:25]} 18. Nxh7 {[%clk 0:01:42]}  Kxh7 {[%clk 0:01:22]} 19. g4 {[%clk 0:01:42]}  Kg7 {[%clk 0:00:40]} 20. gxf5 {[%clk 0:01:41]}  Rh8 {[%clk 0:00:31]} 21. Qg4+ {[%clk 0:01:30]}  Kf8 {[%clk 0:00:24]} 22. Rg1 {[%clk 0:01:30]}  Ke8 {[%clk 0:00:17]} 23. Qg7 {[%clk 0:00:42]}  Rf8 {[%clk 0:00:16]} 24. a3 {[%clk 0:00:41]}  Be7 {[%clk 0:00:15]} 25. Rae1 {[%clk 0:00:39]}  Kd8 {[%clk 0:00:09]} 26. fxe6 {[%clk 0:00:38]}  Bxe6 {[%clk 0:00:09]} 27. f5 {[%clk 0:00:38]}  Rg8 {[%clk 0:00:05]} 28. Qxe7+ {[%clk 0:00:24]}  Kxe7 {[%clk 0:00:04]} 29. Rxe6+ {[%clk 0:00:25]}  Qxe6 {[%clk 0:00:04]} 30. fxe6 {[%clk 0:00:26]}  Rxg1+ {[%clk 0:00:03]} 31. Kxg1 {[%clk 0:00:26]}  Rc1+ {[%clk 0:00:00]} 32. Kg2 {[%clk 0:00:26]} 1-0


[Site "https://www.chess.com"]

[Event "Titled Tuesday Blitz October 31 Late 2023"]
[White "Goltsev, Dmitry"]
[Black "Willy, Stephen"]
[WhiteFideId "24176710"]
[BlackFideId "30981468"]
[WhiteElo "2653"]
[BlackElo "2482"]
[Result "1-0"]
[Round "5"]
[TimeControl "180+1"]
[Date "2023.10.31"]
[WhiteClock "0:00:03"]
[BlackClock "0:00:15"]
[Board "64"]

1. e4 {[%clk 0:02:53]}  c6 {[%clk 0:02:54]} 2. d4 {[%clk 0:02:52]}  d5 {[%clk 0:02:55]} 3. Nc3 {[%clk 0:02:53]}  dxe4 {[%clk 0:02:54]} 4. Nxe4 {[%clk 0:02:54]}  Nf6 {[%clk 0:02:54]} 5. Qe2 {[%clk 0:02:53]}  Qxd4 {[%clk 0:02:45]} 6. Nxf6+ {[%clk 0:02:51]}  Qxf6 {[%clk 0:02:46]} 7. h3 {[%clk 0:02:50]}  Bf5 {[%clk 0:02:36]} 8. Nf3 {[%clk 0:02:38]}  e6 {[%clk 0:02:27]} 9. c3 {[%clk 0:02:36]}  Nd7 {[%clk 0:02:23]} 10. Bg5 {[%clk 0:02:32]}  Qg6 {[%clk 0:02:21]} 11. O-O-O {[%clk 0:02:29]}  Nf6 {[%clk 0:01:49]} 12. h4 {[%clk 0:02:06]}  h6 {[%clk 0:01:43]} 13. Ne5 {[%clk 0:02:03]}  Qh7 {[%clk 0:01:34]} 14. Nxc6 {[%clk 0:01:40]}  bxc6 {[%clk 0:01:21]} 15. Qa6 {[%clk 0:01:39]}  Be4 {[%clk 0:01:11]} 16. Qb7 {[%clk 0:01:19]}  Rd8 {[%clk 0:00:55]} 17. Rxd8+ {[%clk 0:00:59]}  Kxd8 {[%clk 0:00:56]} 18. Qb8+ {[%clk 0:00:32]}  Kd7 {[%clk 0:00:47]} 19. Qxa7+ {[%clk 0:00:30]}  Kd8 {[%clk 0:00:34]} 20. Qb8+ {[%clk 0:00:21]}  Kd7 {[%clk 0:00:31]} 21. Qb7+ {[%clk 0:00:06]}  Kd6 {[%clk 0:00:30]} 22. Bf4+ {[%clk 0:00:05]}  e5 {[%clk 0:00:29]} 23. Qb8+ {[%clk 0:00:04]}  Kd7 {[%clk 0:00:28]} 24. Bxe5 {[%clk 0:00:04]}  Bc5 {[%clk 0:00:25]} 25. Qc7+ {[%clk 0:00:04]}  Ke6 {[%clk 0:00:26]} 26. Bc4+ {[%clk 0:00:04]}  Kf5 {[%clk 0:00:23]} 27. f3 {[%clk 0:00:04]}  Be3+ {[%clk 0:00:21]} 28. Kd1 {[%clk 0:00:05]}  Bd5 {[%clk 0:00:20]} 29. g4+ {[%clk 0:00:04]}  Nxg4 {[%clk 0:00:15]} 30. Bd3+ {[%clk 0:00:04]}  Ke6 {[%clk 0:00:15]} 31. Qd6# {[%clk 0:00:03]} 1-0


[Site "https://www.chess.com"]

[Event "Titled Tuesday Blitz October 31 Late 2023"]
[White "Haydon, David L"]
[Black "Jovic, Stanoje"]
[WhiteFideId "415405"]
[BlackFideId "905020"]
[WhiteElo "2619"]
[BlackElo "2440"]
[Result "1-0"]
[Round "5"]
[TimeControl "180+1"]
[Date "2023.10.31"]
[WhiteClock "0:00:47"]
[BlackClock "0:00:00"]
[Board "66"]

1. d4 {[%clk 0:03:00]}  Nf6 {[%clk 0:02:58]} 2. c4 {[%clk 0:02:59]}  e6 {[%clk 0:02:57]} 3. Nf3 {[%clk 0:02:59]}  d5 {[%clk 0:02:55]} 4. g3 {[%clk 0:02:59]}  Bb4+ {[%clk 0:02:55]} 5. Bd2 {[%clk 0:02:57]}  Be7 {[%clk 0:02:55]} 6. Bc3 {[%clk 0:02:57]}  Ne4 {[%clk 0:02:50]} 7. Qc2 {[%clk 0:02:55]}  O-O {[%clk 0:02:48]} 8. Bg2 {[%clk 0:02:54]}  b6 {[%clk 0:02:48]} 9. Ne5 {[%clk 0:02:50]}  f6 {[%clk 0:02:44]} 10. Nd3 {[%clk 0:02:26]}  c6 {[%clk 0:02:41]} 11. Nd2 {[%clk 0:02:18]}  f5 {[%clk 0:02:38]} 12. Bb4 {[%clk 0:02:12]}  Nd7 {[%clk 0:02:32]} 13. cxd5 {[%clk 0:02:04]}  cxd5 {[%clk 0:02:27]} 14. Qc6 {[%clk 0:02:02]}  Bxb4 {[%clk 0:02:19]} 15. Nxb4 {[%clk 0:01:56]}  Nxd2 {[%clk 0:02:14]} 16. Qxa8 {[%clk 0:01:52]}  Ne4 {[%clk 0:01:54]} 17. Rc1 {[%clk 0:01:48]}  Qe7 {[%clk 0:01:47]} 18. a3 {[%clk 0:01:42]}  a5 {[%clk 0:01:27]} 19. Nd3 {[%clk 0:01:28]}  Nd6 {[%clk 0:01:20]} 20. Qc6 {[%clk 0:01:17]}  Ba6 {[%clk 0:01:17]} 21. O-O {[%clk 0:01:12]}  Rc8 {[%clk 0:01:04]} 22. Qa4 {[%clk 0:01:09]}  Rxc1 {[%clk 0:00:58]} 23. Rxc1 {[%clk 0:01:05]}  Bxd3 {[%clk 0:00:53]} 24. exd3 {[%clk 0:01:04]}  Nf6 {[%clk 0:00:52]} 25. Qc6 {[%clk 0:01:02]}  b5 {[%clk 0:00:46]} 26. Qa8+ {[%clk 0:01:00]}  Kf7 {[%clk 0:00:45]} 27. Qxa5 {[%clk 0:01:00]}  Kg6 {[%clk 0:00:41]} 28. Qc7 {[%clk 0:00:58]}  Qf8 {[%clk 0:00:39]} 29. Rc6 {[%clk 0:00:56]}  Nfe8 {[%clk 0:00:37]} 30. Qd7 {[%clk 0:00:53]}  Kf6 {[%clk 0:00:31]} 31. b3 {[%clk 0:00:50]}  g5 {[%clk 0:00:31]} 32. a4 {[%clk 0:00:50]}  bxa4 {[%clk 0:00:30]} 33. bxa4 {[%clk 0:00:50]}  g4 {[%clk 0:00:29]} 34. a5 {[%clk 0:00:50]}  Nb5 {[%clk 0:00:00]} 35. Rxe6+ {[%clk 0:00:47]} 1-0


[Site "https://www.chess.com"]